bitfinex-derivatives/quotes_SOLF0:USTF0_20260207
["timestamp","ask_amount","ask_price","bid_price","bid_amount"]
[1770436048072,42.92496451,87.946,87.892,6.53042536]
[1770436048862,42.92496451,87.946,87.901,10.2457]
[1770436050467,42.92496451,87.946,87.892,6.53042536]
[1770436051376,42.92496451,87.944,87.892,6.53042536]
[1770436052672,42.92496451,87.944,87.888,10.2472]
[1770436052875,42.92496451,87.942,87.847,7.00213322]
[1770436054668,20.4747,87.974,87.847,7.00213322]
[1770436054669,10.2445,87.912,87.856,10.2509]
[1770436054970,42.92496451,87.911,87.856,10.2509]
[1770436055572,42.01091711,87.926,87.867,7.12582715]
[1770436056578,42.01091711,87.926,87.882,10.2479]
[1770436057678,42.01091711,87.926,87.872,10.2491]
[1770436062587,42.01091711,87.926,87.88,10.2481]
[1770436062987,42.01091711,87.942,87.881,7.96456969]
[1770436063684,42.01091711,87.942,87.895,10.2463]
[1770436065089,42.01091711,87.942,87.87,13.55499405]
[1770436065090,42.01091711,87.958,87.904,7.76613167]
[1770436066789,42.01091711,87.958,87.91,10.2446]
[1770436066991,42.01091711,87.958,87.89,7.82846555]
[1770436069680,52.25001711,87.958,87.891,10.2468]
[1770436069885,52.25001711,87.958,87.845,34.16]
[1770436069886,42.01091711,87.958,87.873,7.23810207]
[1770436070183,42.01091711,87.958,87.862,7.52268741]
[1770436070377,1.97959538,87.993,87.859,13.55499405]
[1770436070378,42.01091711,87.913,87.859,13.55499405]
[1770436070577,42.01091711,87.913,87.841,7.52268741]
[1770436070980,42.01091711,87.901,87.828,13.55499405]
[1770436071288,42.01091711,87.901,87.83,7.60985218]
[1770436071788,42.01091711,87.901,87.821,13.55499405]
[1770436072183,42.01091711,87.901,87.819,13.55499405]
[1770436072582,42.01091711,87.901,87.818,13.55499405]
[1770436072881,42.01091711,87.889,87.83,10.254]
[1770436073386,42.01091711,87.889,87.82,13.55499405]
[1770436073387,42.01091711,87.889,87.839,9.17831989]
[1770436073592,42.01091711,87.889,87.82,22.73331394]
[1770436073891,42.01091711,87.889,87.821,9.26074605]
[1770436074386,42.01091711,87.889,87.823,13.55499405]
[1770436074683,42.01091711,87.886,87.828,10.2542]
[1770436075685,10.2476,87.885,87.828,10.2542]
[1770436075881,42.01091711,87.884,87.828,10.2542]
[1770436076087,42.01091711,87.884,87.837,10.2532]
[1770436076684,42.01091711,87.884,87.846,10.252]
[1770436078585,42.01091711,87.884,87.846,23.80699405]
[1770436079193,42.01091711,87.884,87.847,13.55499405]
[1770436079390,42.01091711,87.898,87.853,9.40392943]
[1770436079591,42.01091711,87.915,87.87,13.55499405]
[1770436079792,42.01091711,87.915,87.853,9.40392943]
[1770436079793,42.01091711,87.915,87.869,13.55499405]
[1770436079992,42.01091711,87.915,87.853,9.40392943]
[1770436079993,42.01091711,87.915,87.866,13.55499405]
[1770436080390,42.01091711,87.915,87.871,13.55499405]
[1770436080596,42.01091711,87.915,87.868,13.55499405]
[1770436080795,42.01091711,87.915,87.867,10.2496]
[1770436080997,42.01091711,87.915,87.878,10.2484]
[1770436081698,42.01091711,87.915,87.886,10.2474]
[1770436082799,42.01091711,87.915,87.876,10.2486]
[1770436084601,42.01091711,87.915,87.861,13.55499405]
[1770436084802,42.01091711,87.915,87.858,13.55499405]
[1770436085001,42.01091711,87.915,87.85,13.55499405]
[1770436085201,42.01091711,87.915,87.849,13.55499405]
[1770436085402,42.01091711,87.904,87.849,23.80679405]
[1770436085603,42.01091711,87.904,87.849,10.2518]
[1770436086792,42.01091711,87.904,87.855,10.2511]
[1770436086996,42.70175712,87.901,87.848,13.55499405]
[1770436087192,42.70175712,87.901,87.849,13.55499405]
[1770436088492,42.70175712,87.901,87.857,10.50687629]
[1770436089812,42.70175712,87.901,87.858,10.50687629]
[1770436090216,42.70175712,87.901,87.857,10.50687629]
[1770436091621,42.70175712,87.901,87.849,10.2517]
[1770436091919,41.82435143,87.891,87.812,20.62133938]
[1770436092811,41.82435143,87.883,87.83,10.2539]
[1770436094912,41.82435143,87.88,87.797,43.15594062]
[1770436095518,41.82435143,87.865,87.797,43.15594062]
[1770436096823,41.82435143,87.86,87.799,10.2575]
[1770436097027,41.82435143,87.86,87.78,43.15594062]
[1770436097921,41.82435143,87.856,87.79,43.15594062]
[1770436098528,41.82435143,87.887,87.827,10.2543]
[1770436099817,41.82435143,87.885,87.827,10.2543]
[1770436101227,41.82435143,87.877,87.827,10.2543]
[1770436101829,10.2487,87.876,87.817,10.2554]
[1770436102130,41.82435143,87.875,87.817,10.2554]
[1770436102424,41.82435143,87.875,87.826,10.2544]
[1770436105624,41.82435143,87.875,87.837,10.2531]
[1770436114537,41.82435143,87.907,87.846,43.15594062]
[1770436117034,41.82435143,87.907,87.849,47.32095792]
[1770436117238,44.10074195,87.92,87.849,47.32095792]
[1770436117740,44.10074195,87.92,87.872,10.249]
[1770436118939,44.10074195,87.92,87.835,21.03443701]
[1770436119133,44.10074195,87.92,87.83,47.32095792]
[1770436119638,44.10074195,87.899,87.836,47.32095792]
[1770436120939,44.10074195,87.896,87.836,47.32095792]
[1770436121739,44.10074195,87.89,87.836,47.32095792]
[1770436122741,44.10074195,87.89,87.847,10.252]
[1770436122941,44.10074195,87.89,87.848,47.32095792]
[1770436123742,44.10074195,87.89,87.85,10.2516]
[1770436124640,44.10074195,87.916,87.858,10.2506]
[1770436124943,44.10074195,87.916,87.858,24.31309126]
[1770436125345,44.10074195,87.911,87.851,14.06249126]
[1770436125546,44.10074195,87.911,87.849,14.06249126]
[1770436125838,44.10074195,87.911,87.853,14.06249126]
[1770436126038,44.10074195,87.911,87.854,14.06249126]
[1770436126439,44.10074195,87.909,87.858,10.2507]
[1770436127343,44.10074195,87.909,87.866,10.2498]
[1770436127543,44.10074195,87.956,87.871,14.06249126]
[1770436127738,44.10074195,87.956,87.871,61.38344918]
[1770436127940,44.10074195,87.956,87.872,47.32095792]
[1770436128536,44.10074195,87.956,87.872,61.38344918]
[1770436128738,44.10074195,87.93,87.874,10.2488]
[1770436129247,44.10074195,87.91,87.856,24.31349126]
[1770436129846,44.10074195,87.91,87.861,10.2503]
[1770436131150,44.10074195,87.908,87.861,10.2503]
[1770436131558,44.10074195,87.908,87.861,24.31279126]
[1770436131746,44.10074195,87.908,87.862,14.06249126]
[1770436132852,44.10074195,87.908,87.861,10.2503]
[1770436133046,10.2438,87.918,87.867,10.2497]
[1770436133246,44.10074195,87.921,87.875,14.06249126]
[1770436133744,44.10074195,87.921,87.875,24.31119126]
[1770436134254,44.10074195,87.921,87.875,10.2487]
[1770436134847,44.10074195,87.921,87.875,24.31119126]
[1770436135046,44.10074195,87.921,87.88,10.2481]
[1770436135443,44.10074195,87.921,87.88,24.31059126]
[1770436136051,20.4741,87.976,87.88,24.31059126]
[1770436136052,44.10074195,87.936,87.888,57.56815792]
[1770436136353,44.10074195,87.936,87.89,14.06249126]
[1770436136857,44.10074195,87.936,87.89,10.247]
[1770436137754,44.10074195,87.936,87.898,10.246]
[1770436140948,44.10074195,87.936,87.889,47.32095792]
[1770436140949,44.10074195,87.936,87.906,10.2451]
[1770436142160,44.10074195,87.936,87.883,14.06249126]
[1770436142350,44.10074195,87.936,87.876,47.32095792]
[1770436143251,44.10074195,87.936,87.877,47.32095792]
[1770436143955,44.10074195,87.934,87.882,10.2479]
[1770436144657,44.10074195,87.934,87.882,57.56885792]
[1770436145658,46.09761482,87.928,87.882,57.56885792]
[1770436147258,46.09761482,87.924,87.872,10.249]
[1770436149257,46.09761482,87.924,87.88,10.2481]
[1770436150663,46.09761482,87.924,87.888,10.2472]
[1770436151766,46.09761482,87.924,87.896,10.2462]
[1770436152067,46.09761482,87.924,87.89,14.06249126]
[1770436152459,46.09761482,87.924,87.892,10.2467]
[1770436157464,46.09761482,87.924,87.879,45.09522444]
[1770436157465,46.09761482,87.924,87.899,10.2459]
[1770436158367,46.0146473,87.942,87.908,10.2449]
[1770436158765,46.0146473,87.992,87.906,45.09522444]
[1770436159369,10.2371,87.976,87.923,10.2431]
[1770436159570,46.0146473,87.975,87.923,10.2431]
[1770436159767,46.0146473,87.975,87.906,45.09522444]
[1770436160071,46.0146473,87.971,87.915,10.2441]
[1770436160668,46.0146473,87.969,87.915,10.2441]
[1770436163177,46.0146473,87.967,87.915,10.2441]
[1770436164476,46.0146473,87.964,87.892,45.09522444]
[1770436165774,46.0146473,87.961,87.903,10.2454]
[1770436166373,46.0146473,87.961,87.914,45.09522444]
[1770436166978,46.0146473,87.961,87.9,45.09522444]
[1770436167172,46.0146473,87.961,87.894,45.09522444]
[1770436168470,46.0146473,87.961,87.9,14.06249126]
[1770436168674,56.2534473,87.961,87.908,10.2449]
[1770436172189,56.2534473,87.961,87.908,55.34012444]
[1770436172879,46.0146473,87.961,87.917,10.2438]
[1770436173082,46.0146473,87.961,87.918,45.09522444]
[1770436173280,46.0146473,87.961,87.919,14.06249126]
[1770436173878,1.97959538,87.993,87.919,14.06249126]
[1770436173879,46.0146473,87.978,87.926,55.33802444]
[1770436177389,46.0146473,87.978,87.926,69.4005157]
[1770436177584,49.87679498,87.992,87.935,47.66824663]
[1770436177891,49.87679498,87.992,87.939,47.66824663]
[1770436178090,49.87679498,87.992,87.941,47.66824663]
[1770436178486,49.87679498,87.992,87.951,10.2398]
[1770436178890,10.2339,88.003,87.951,10.2398]
[1770436178891,49.87679498,88.021,87.951,57.90804663]
[1770436179791,49.87679498,88.012,87.951,57.90804663]
[1770436180093,49.87679498,88.012,87.951,47.66824663]
[1770436180491,49.87679498,88.012,87.903,159.3735]
[1770436180492,49.87679498,88.04,87.982,47.66824663]
[1770436180696,49.87679498,88.04,87.969,47.66824663]
[1770436181085,49.87679498,88.04,87.976,47.66824663]
[1770436182694,49.87679498,88.04,87.996,10.2346]
[1770436182883,49.87679498,88.04,87.976,47.66824663]
[1770436183494,49.87679498,88.04,87.985,10.2359]
[1770436183696,49.87679498,88.04,87.985,47.66824663]
[1770436184697,49.87679498,88.04,87.995,10.2347]
[1770436186996,49.87679498,88.04,87.985,47.66824663]
[1770436188800,49.87679498,88.04,87.994,10.2349]
[1770436191497,49.87679498,88.11,88.004,47.66824663]
[1770436191697,1.97747497,88.083,88.004,47.66824663]
[1770436191900,49.87679498,88.082,88.004,47.66824663]
[1770436192207,49.87679498,88.073,88.015,47.66824663]
[1770436193201,49.87679498,88.102,88.015,47.66824663]
[1770436193505,49.87679498,88.095,88.043,47.66824663]
[1770436193895,49.87679498,88.095,88.044,10.229]
[1770436194300,49.87679498,88.093,87.998,47.66824663]
[1770436194705,49.87679498,88.093,87.935,21.03443701]
[1770436194706,49.87679498,88.093,87.965,47.66824663]
[1770436194900,49.87679498,88.039,87.979,10.2366]
[1770436195905,49.87679498,88.028,87.97,10.2376]
[1770436196306,49.87679498,88.026,87.965,47.66824663]
[1770436196704,49.87679498,88.026,87.912,20.4889]
[1770436196705,49.87679498,88.026,87.95,47.66824663]
[1770436197006,49.87679498,88.01,87.95,47.66824663]
[1770436197813,49.87679498,88.006,87.95,47.66824663]
[1770436200506,49.87679498,88.026,87.951,47.66824663]
[1770436200813,49.87679498,88.068,87.951,47.66824663]
[1770436201714,49.87679498,88.057,87.991,10.2352]
[1770436201914,49.87679498,88.057,87.969,47.66824663]
[1770436202609,10.2297,88.039,87.98,10.2365]
[1770436202813,49.87679498,88.038,87.98,10.2365]
[1770436203209,49.87679498,88.038,87.989,57.90364663]
[1770436204115,49.87679498,88.056,88.0,47.66824663]
[1770436205717,49.87679498,88.056,88.016,10.2322]
[1770436205913,49.87679498,88.056,88.0,47.66824663]
[1770436206807,49.87679498,88.056,88.003,10.2338]
[1770436207012,49.87679498,88.056,88.003,60.44314871]
[1770436210623,49.87679498,88.056,88.014,10.2325]
[1770436211624,49.87679498,88.056,87.987,46.31892054]
[1770436211829,49.87679498,88.056,87.971,46.31892054]
[1770436212223,48.593209,88.02,87.971,46.31892054]
[1770436212825,48.593209,88.02,87.959,10.239]
[1770436213034,48.593209,88.02,87.959,56.55792054]
[1770436213218,20.4465,88.095,87.923,21.03443701]
[1770436213219,48.593209,88.018,87.944,46.31892054]
[1770436214831,159.0865,88.063,87.944,46.31892054]
[1770436214832,48.593209,88.002,87.945,10.2406]
[1770436215533,48.593209,88.002,87.954,10.2395]
[1770436218532,48.593209,88.024,87.963,56.55732054]
[1770436219335,48.593209,88.022,87.963,56.55732054]
[1770436219632,48.593209,88.022,87.935,46.31892054]
[1770436220726,48.593209,88.005,87.942,10.2409]
[1770436220929,48.593209,88.005,87.942,56.55982054]
[1770436221130,48.593209,88.005,87.942,46.31892054]
[1770436222039,48.593209,88.005,87.951,46.31892054]
[1770436223433,48.593209,88.005,87.955,10.2393]
[1770436224139,48.593209,88.002,87.946,10.2405]
[1770436225543,48.593209,87.994,87.922,46.31892054]
[1770436226739,48.593209,87.984,87.927,10.2427]
[1770436227844,48.593209,87.982,87.927,10.2427]
[1770436229754,48.593209,87.999,87.937,46.31892054]
[1770436230746,48.593209,87.999,87.949,10.2401]
[1770436231047,48.593209,87.999,87.937,46.31892054]
[1770436231343,48.593209,87.999,87.957,10.2392]
[1770436231543,48.593209,87.999,87.939,46.31892054]
[1770436232643,48.593209,87.999,87.962,10.2385]
[1770436232948,48.593209,87.999,87.929,14.06249126]
[1770436233142,20.4587,88.043,87.925,46.31892054]
[1770436233143,48.593209,87.985,87.932,10.2421]
[1770436234747,48.593209,87.981,87.925,46.31892054]
[1770436235544,48.593209,87.981,87.898,46.31892054]
[1770436235745,49.29654422,87.979,87.926,10.2427]
[1770436237652,49.29654422,87.979,87.935,10.2417]
[1770436238054,49.29654422,87.979,87.945,10.2405]
[1770436238257,49.29654422,87.998,87.945,10.2405]
[1770436238647,49.29654422,87.998,87.938,49.17442068]
[1770436238849,49.29654422,87.998,87.954,10.2395]
[1770436241151,49.29654422,87.998,87.964,10.2383]
[1770436241660,49.29654422,87.998,87.956,10.2393]
[1770436242755,49.29654422,87.998,87.964,10.2383]
[1770436242951,49.29654422,87.998,87.926,14.06249126]
[1770436243262,49.29654422,87.998,87.924,49.17442068]
[1770436243658,49.29654422,87.998,87.936,49.17442068]
[1770436244260,49.29654422,87.998,87.951,49.17442068]
[1770436245061,10.2303,88.034,87.981,10.2364]
[1770436245261,30.95065501,88.07,87.951,49.17442068]
[1770436245461,10.49835501,88.068,87.951,49.17442068]
[1770436245860,30.95065501,88.07,87.951,49.17442068]
[1770436246157,20.4551,88.058,87.96,10.2388]
[1770436247158,20.4551,88.058,87.95,10.2399]
[1770436247159,49.29654422,88.027,87.95,10.2399]
[1770436247360,49.29654422,88.027,87.933,49.17442068]
[1770436248261,49.29654422,88.01,87.951,10.2399]
[1770436249459,49.29654422,88.01,87.96,10.2388]
[1770436253173,49.29654422,88.01,87.968,10.2379]
[1770436253665,49.29654422,88.01,87.976,10.237]
[1770436255062,49.29654422,88.01,87.984,10.236]
[1770436257062,49.29654422,88.044,87.984,10.236]
[1770436257874,49.29654422,88.044,87.993,10.235]
[1770436260668,49.29654422,88.04,87.982,10.2362]
[1770436260873,49.29654422,88.04,87.928,27.82698605]
[1770436260874,49.29654422,88.04,87.956,49.17442068]
[1770436261365,49.29654422,88.019,87.958,10.239]
[1770436262159,49.29654422,88.016,87.958,10.239]
[1770436263769,49.29654422,88.011,87.958,10.239]
[1770436264165,49.29654422,88.011,87.897,27.82698605]
[1770436264166,49.29654422,88.011,87.923,49.17442068]
[1770436264367,49.29654422,87.991,87.923,49.17442068]
[1770436264866,49.29654422,88.035,87.941,49.17442068]
[1770436265268,49.29654422,88.011,87.941,49.17442068]
[1770436266669,10.2337,88.005,87.941,59.41542068]
[1770436266874,52.63117629,88.004,87.941,59.41542068]
[1770436267774,52.63117629,87.997,87.941,59.41542068]
[1770436268169,52.63117629,87.997,87.941,49.17442068]
[1770436269766,52.12767266,87.994,87.941,49.17442068]
[1770436273579,52.12767266,88.035,87.965,51.72836034]
[1770436274583,52.12767266,88.024,87.969,51.72836034]
[1770436275685,52.12767266,88.024,87.978,10.2366]
[1770436278479,52.12767266,88.024,87.955,51.72836034]
[1770436279692,52.12767266,88.017,87.957,10.2392]
[1770436281085,52.12767266,88.017,87.957,61.96756034]
[1770436281389,52.12767266,88.017,87.967,10.2379]
[1770436288085,52.12767266,88.033,87.976,61.96526034]
[1770436295291,52.12767266,88.033,87.984,51.72836034]
[1770436296382,52.12767266,88.033,87.991,10.2352]
[1770436298586,52.12767266,88.033,87.991,63.04409329]
[1770436299187,52.12767266,88.033,87.999,10.2343]
[1770436299393,51.41478256,88.059,88.0,52.80889329]
[1770436299794,51.41478256,88.059,88.019,10.2319]
[1770436299999,51.41478256,88.059,88.02,52.80889329]
[1770436301800,51.41478256,88.059,88.024,10.2314]
[1770436302299,159.18,88.074,88.024,52.80889329]
[1770436302500,159.18,88.074,88.039,52.80889329]
[1770436303598,51.41478256,88.083,88.044,52.80889329]
[1770436304897,51.41478256,88.083,88.048,10.2285]
[1770436305099,10.2211,88.113,87.987,193.3823]
[1770436305100,51.41478256,88.102,88.049,52.80889329]
[1770436305896,51.41478256,88.102,88.063,10.2268]
[1770436309501,51.41478256,88.102,88.054,10.2279]
[1770436310502,51.41478256,88.102,88.045,10.2289]
[1770436311806,51.41478256,88.102,88.053,63.03689329]
[1770436315606,51.41478256,88.102,88.061,10.227]
[1770436318800,51.41478256,88.102,88.019,52.80889329]
[1770436319806,34.16,88.149,88.019,52.80889329]
[1770436319807,51.41478256,88.091,88.027,10.231]
[1770436320199,51.41478256,88.081,88.019,52.80889329]
[1770436321011,51.41478256,88.077,88.019,52.80889329]
[1770436322010,51.41478256,88.077,88.02,10.2318]
[1770436322208,51.41478256,88.077,88.02,52.80889329]
[1770436323210,51.41478256,88.077,88.037,63.03879329]
[1770436324516,51.41478256,88.09,88.047,52.80889329]
[1770436325220,53.39174077,88.103,88.05,52.80889329]
[1770436326719,53.39174077,88.103,88.054,10.2279]
[1770436327211,53.39174077,88.103,88.054,62.61429032]
[1770436336428,53.29189318,88.1,88.03,54.85851203]
[1770436337824,53.29189318,88.098,88.038,10.2297]
[1770436338426,53.29189318,88.094,88.03,54.85851203]
[1770436339030,53.29189318,88.089,88.03,54.85851203]
[1770436339526,53.29189318,88.089,88.013,54.85851203]
[1770436339831,53.29189318,88.069,88.013,54.85851203]
[1770436342626,53.29189318,88.066,87.985,54.85851203]
[1770436343326,53.29189318,88.063,87.988,54.85851203]
[1770436343824,53.29189318,88.093,88.014,54.85851203]
[1770436345730,53.29189318,88.091,88.019,54.85851203]
[1770436346136,1.97695821,88.103,88.019,54.85851203]
[1770436346426,1.97695821,88.103,88.051,54.85851203]
[1770436347534,55.26885139,88.103,88.051,54.85851203]
[1770436348423,55.26885139,88.103,88.037,54.85851203]
[1770436348828,55.26885139,88.103,87.984,54.85851203]
[1770436349729,53.29189318,88.082,88.006,54.85851203]
[1770436350629,53.29189318,88.082,88.012,54.85851203]
[1770436351741,53.29189318,88.082,88.018,54.85851203]
[1770436352838,53.29189318,88.082,88.022,54.85851203]
[1770436353740,53.29189318,88.082,88.023,10.2315]
[1770436354141,53.29189318,88.082,88.023,65.09001203]
[1770436357844,53.29189318,88.082,88.023,54.85851203]
[1770436359844,53.29189318,88.082,88.027,65.06458854]
[1770436360544,53.29189318,88.082,88.038,65.06328854]
[1770436360744,55.2075077,88.102,88.038,54.83358854]
[1770436361845,55.2075077,88.102,88.049,54.83358854]
[1770436362739,55.2075077,88.102,88.029,54.83358854]
[1770436362945,55.2075077,88.1,88.029,54.83358854]
[1770436363744,55.2075077,88.098,88.029,65.06428854]
[1770436363946,55.2075077,88.098,88.029,54.83358854]
[1770436364847,55.2075077,88.098,87.994,20.4698]
[1770436364848,1.97695821,88.103,88.052,54.83358854]
[1770436365750,1.97695821,88.103,88.058,54.83358854]
[1770436366242,55.2075077,88.129,88.058,54.83358854]
[1770436366448,57.18364639,88.129,88.058,54.83358854]
[1770436367648,57.18364639,88.129,88.069,54.83358854]
[1770436367850,57.18364639,88.129,88.006,54.83358854]
[1770436368346,55.2075077,88.1,88.037,65.06348854]
[1770436368947,55.2075077,88.1,88.037,54.83358854]
[1770436369346,55.2075077,88.098,88.037,54.83358854]
[1770436370249,55.2075077,88.096,88.037,54.83358854]
[1770436370752,55.2075077,88.079,88.018,54.83358854]
[1770436371545,55.2075077,88.079,88.02,54.83358854]
[1770436371850,1.97613869,88.129,88.02,54.83358854]
[1770436371851,55.2075077,88.093,88.02,54.83358854]
[1770436372751,55.2075077,88.093,88.036,54.83358854]
[1770436376052,55.2075077,88.091,88.036,54.83358854]
[1770436376254,55.2075077,88.091,88.018,54.83358854]
[1770436377751,55.2075077,88.091,88.022,54.83358854]
[1770436377752,65.4312077,88.091,88.022,54.83358854]
[1770436378349,55.2075077,88.091,88.034,54.83358854]
[1770436379162,55.2075077,88.091,88.037,54.83358854]
[1770436379561,1.97613869,88.129,88.037,54.83358854]
[1770436379562,55.2075077,88.107,88.037,54.83358854]
[1770436380263,65.4280077,88.118,88.048,10.2285]
[1770436380461,65.4280077,88.118,88.049,54.83358854]
[1770436380856,55.2075077,88.109,88.051,54.83358854]
[1770436381754,10.2208,88.116,88.051,54.83358854]
[1770436382260,55.2075077,88.123,88.062,54.83358854]
[1770436382862,55.2075077,88.12,88.062,54.83358854]
[1770436383854,55.2075077,88.116,88.062,54.83358854]
[1770436384458,1.97613869,88.129,88.062,54.83358854]
[1770436384657,55.2075077,88.128,88.062,54.83358854]
[1770436385568,159.02,88.185,88.084,54.83358854]
[1770436385861,28.13850829,88.25,88.006,159.188]
[1770436385862,52.26884021,88.211,88.09,54.8486899]
[1770436386161,52.26884021,88.211,88.126,54.8486899]
[1770436386952,52.26884021,88.211,88.094,54.8486899]
[1770436387769,52.26884021,88.211,88.128,54.8486899]
[1770436388365,52.26884021,88.211,88.131,54.54717217]
[1770436389062,52.26884021,88.211,88.134,54.54717217]
[1770436389259,52.26884021,88.211,88.119,54.54717217]
[1770436389761,52.26884021,88.211,88.122,54.54717217]
[1770436392464,52.05601675,88.207,88.107,54.54717217]
[1770436393461,52.05601675,88.185,88.085,54.54717217]
[1770436394062,52.05601675,88.16,88.085,54.54717217]
[1770436395268,20.4117,88.245,88.055,54.54717217]
[1770436395269,52.05601675,88.157,88.055,54.54717217]
[1770436395669,158.94,88.173,88.055,54.54717217]
[1770436395670,52.05601675,88.141,88.055,54.54717217]
[1770436396260,52.05601675,88.132,88.055,54.54717217]
[1770436397072,52.05601675,88.128,88.055,54.54717217]
[1770436397272,52.05601675,88.112,88.055,54.54717217]
[1770436397769,52.05601675,88.112,88.016,54.54717217]
[1770436398868,52.05601675,88.112,88.018,54.54717217]
[1770436400162,52.05601675,88.109,88.018,54.54717217]
[1770436400771,1.97639121,88.113,88.018,54.54717217]
[1770436400772,52.05601675,88.107,88.018,54.54717217]
[1770436401868,52.05601675,88.103,88.018,54.54717217]
[1770436403474,52.05601675,88.101,88.018,54.54717217]
[1770436404176,52.05601675,88.099,88.018,54.54717217]
[1770436406074,52.05601675,88.099,88.02,54.54717217]
[1770436407476,62.27891675,88.098,88.02,54.54717217]
[1770436407976,62.27891675,88.098,88.023,54.54717217]
[1770436408672,52.05601675,88.098,88.028,54.54717217]
[1770436409671,52.05601675,88.098,88.032,54.54717217]
[1770436412776,1.97639121,88.113,88.032,54.54717217]
[1770436412777,52.05601675,88.096,88.032,54.54717217]
[1770436416571,52.05601675,88.096,88.034,53.76251176]
[1770436417684,52.05601675,88.096,88.036,10.23]
[1770436417982,52.05601675,88.096,88.037,53.76251176]
[1770436419778,49.91525677,88.092,88.019,53.76251176]
[1770436420377,49.91525677,88.071,88.019,53.76251176]
[1770436422383,1.97639121,88.113,88.019,53.76251176]
[1770436422384,49.91525677,88.09,88.019,53.76251176]
[1770436422889,49.91525677,88.09,88.021,53.76251176]
[1770436423287,60.14025677,88.08,88.021,53.76251176]
[1770436423585,49.91525677,88.08,88.021,53.76251176]
[1770436424693,49.91525677,88.071,88.021,53.76251176]
[1770436426787,10.2247,88.082,88.021,53.76251176]
[1770436427190,60.13995677,88.082,88.021,53.76251176]
[1770436428091,49.91525677,88.073,88.021,53.76251176]
[1770436429493,10.228,88.054,87.989,53.76251176]
[1770436430600,49.91525677,88.059,87.989,53.76251176]
[1770436431095,49.91525677,88.059,87.967,13.75628433]
[1770436431096,10.2275,88.058,87.994,53.76251176]
[1770436431894,10.2275,88.058,87.996,53.76251176]
[1770436432704,10.2275,88.058,87.997,10.2345]
[1770436432887,10.2275,88.058,87.998,53.76251176]
[1770436433696,10.2275,88.058,87.973,13.75628433]
[1770436433697,10.2275,88.058,88.0,53.76251176]
[1770436434491,10.2275,88.058,88.002,53.76251176]
[1770436435700,49.91525677,88.059,88.004,53.76251176]
[1770436436595,49.91525677,88.059,88.006,53.76251176]
[1770436436892,49.91525677,88.085,88.006,53.76251176]
[1770436437092,49.91525677,88.085,88.007,53.76251176]
[1770436437303,49.91525677,88.085,88.016,53.76251176]
[1770436437502,49.91525677,88.085,88.018,53.76251176]
[1770436439602,49.91525677,88.085,88.018,63.99461176]
[1770436440901,49.91525677,88.085,88.027,53.76251176]
[1770436441302,49.91525677,88.085,88.014,53.76251176]
[1770436441899,49.91525677,88.085,88.016,53.76251176]
[1770436443099,49.91525677,88.081,88.016,53.76251176]
[1770436448907,10.2261,88.07,88.016,53.76251176]
[1770436449110,48.56199012,88.069,88.016,53.76251176]
[1770436451410,48.56199012,88.066,87.976,50.77249936]
[1770436452816,48.56199012,88.066,87.988,10.2355]
[1770436453109,48.56199012,88.066,87.969,20.80952651]
[1770436453110,48.56199012,88.066,87.989,50.77249936]
[1770436453414,48.56199012,88.066,87.993,50.77249936]
[1770436454308,48.56199012,88.066,87.951,34.11]
[1770436454309,48.56199012,88.066,87.998,50.77249936]
[1770436455605,48.56199012,88.066,88.0,50.77249936]
[1770436457323,48.56199012,88.078,88.007,50.77249936]
[1770436457516,48.56199012,88.078,88.01,50.77249936]
[1770436457914,48.56199012,88.078,88.018,20.80952651]
[1770436458123,48.56199012,88.078,88.019,50.77249936]
[1770436459423,48.56199012,88.112,88.023,50.77249936]
[1770436460320,48.56199012,88.112,88.033,50.77249936]
[1770436460719,48.56199012,88.112,88.035,50.77249936]
[1770436462310,48.56199012,88.11,88.035,50.77249936]
[1770436463722,48.56199012,88.106,88.035,50.77249936]
[1770436466920,58.78389012,88.106,88.035,50.77249936]
[1770436468218,48.56199012,88.106,88.035,50.77249936]
[1770436469825,48.56199012,88.101,88.035,50.77249936]
[1770436471424,48.56199012,88.097,88.035,50.77249936]
[1770436473124,48.56199012,88.095,88.035,50.77249936]
[1770436474127,48.56199012,88.093,88.035,50.77249936]
[1770436475928,48.74480962,88.091,88.035,50.77249936]
[1770436476723,48.74480962,88.089,88.035,50.77249936]
[1770436477830,48.74480962,88.087,88.035,50.77249936]
[1770436478321,48.74480962,88.1,88.035,50.77249936]
[1770436479723,10.2232,88.095,88.035,50.77249936]
[1770436480426,58.96800962,88.095,88.035,50.77249936]
[1770436480618,10.2221,88.104,88.038,50.49479293]
[1770436480822,48.74480962,88.103,88.038,50.49479293]
[1770436481631,58.96730962,88.101,88.038,50.49479293]
[1770436485632,48.74480962,88.101,88.04,50.49479293]
[1770436486719,48.74480962,88.101,88.042,50.49479293]
[1770436487832,48.74480962,88.101,88.046,50.49479293]
[1770436489623,48.74480962,88.101,88.046,60.72359293]